Cogmind - Beta 14 @@@ ROGUE MODE // 2024.12.24 @ 14:13:10 Player: buwwet Result: Self-destructed Performance ------------- Evolutions (4) 2000 Regions Visited (10) 2000 Robots Destroyed (34) 170 Value Destroyed (1232) 1232 Prototype IDs (3) 60 Alien Tech Used (0) 0 Bonus (345) 345 TOTAL SCORE: 5807 Bonus ------- Follower Combat Kills 45 Aligned with FarCom 300 Cogmind --------- Core Integrity 850/850 Matter 281/300 Energy 240/240 System Corruption 1% Temperature Cool (48) Movement Rolling (135) Ox3 Location -6/Factory Parts ------- > --- POWER (2) -------- Nuclear Core > --- PROPULSION (4) --- Advanced Treads Wheel Armored Huge Wheel > --- UTILITY (6) ------ Improved Heat Sink Huge Storage Unit Enhanced Optical Array Makeshift Terrain Scan Processor Improved Light Armor Plating Improved Medium Armor Plating > --- WEAPON (3) ------- Guided Plasma Cannon Flak Cannon Katana > --- INVENTORY (25) --- Armored Huge Wheel Gravmag System Gravmag System Gravmag System Xenon Bombardment Thruster Power Amplifier Improved Heat Sink Improved Terrain Scanner Advanced Melee Analysis Suite Transmission Jammer Improved Weapon Shielding Improved Medium Armor Plating Hacking Suite Hacking Suite System Shield System Shield Corruption Screen Shock Rifle Proton Cannon Remote Datajack Peak State ------------ > --- POWER ------------ Nuclear Core > --- PROPULSION ------- Advanced Treads Wheel Armored Huge Wheel > --- UTILITY ---------- Improved Heat Sink Huge Storage Unit Enhanced Optical Array Improved Terrain Scanner Makeshift Terrain Scan Processor Improved Medium Armor Plating > --- WEAPON ----------- Guided Plasma Cannon Flak Cannon Katana > --- INVENTORY -------- Armored Huge Wheel Gravmag System Gravmag System Xenon Bombardment Thruster Power Amplifier Improved Heat Sink Advanced Melee Analysis Suite Transmission Jammer Improved Weapon Shielding Improved Light Armor Plating Improved Medium Armor Plating Hacking Suite Hacking Suite System Shield System Shield Corruption Screen Shock Rifle Proton Cannon Remote Datajack [Rating: 56] Favorites ----------- Power Light Ion Engine Engine Light Ion Engine Power Core Light Nuclear Core Propulsion Advanced Treads Treads Advanced Treads Wheel Armored Huge Wheel Hover Unit Aerolev Unit Flight Unit Cesium-ion Thruster Utility Improved Terrain Scanner Device Improved Terrain Scanner Storage Medium Storage Unit Processor Terrain Scan Processor Protection Improved Medium Armor Plating Weapon Assault Cannon Energy Gun Particle Gun Energy Cannon Guided Plasma Cannon Ballistic Gun Assault Rifle Ballistic Cannon Assault Cannon Special Weapon Welding Torch Slashing Weapon Katana Build | -11 -10 -9 -9 -9 -8 -8 -7 -7 -7 -6 ------- Run | Yrd Mat Mat Min Exi Min Mat Fac Low Low Fac Slots Evolved 8 | . . 2 . . . 2 2 . . 2 Power 1 | . . . . . . . 1 . . . Propulsion 2 | . . . . . . 1 1 . . . Utility 4 | . . 2 . . . 1 . . . 1 Weapon 1 | . . . . . . . . . . 1 Parts Attached 86 | 8 8 8 . 7 5 13 19 2 11 5 Power 7 | 1 . . . 1 1 . 2 1 1 . Engine 3 | 1 . . . 1 1 . . . . . Core 4 | . . . . . . . 2 1 1 . Reactor . | . . . . . . . . . . . Propulsion 18 | 3 2 3 . . . 2 6 . 2 . Treads 8 | 1 1 3 . . . 1 2 . . . Leg . | . . . . . . . . . . . Wheel 7 | 2 1 . . . . . 2 . 2 . Hover 2 | . . . . . . . 2 . . . Flight 1 | . . . . . . 1 . . . . Utility 36 | 2 4 3 . 5 3 5 4 . 6 4 Device 14 | 1 2 1 . 2 1 3 1 . 2 1 Storage 4 | 1 1 . . . . 1 1 . . . Processor 4 | . . 1 . 1 . . . . 1 1 Hackware . | . . . . . . . . . . . Protection 14 | . 1 1 . 2 2 1 2 . 3 2 Artifact . | . . . . . . . . . . . Weapon 25 | 2 2 2 . 1 1 6 7 1 2 1 Energy Gun 4 | 1 . . . . 1 1 . . 1 . Energy Cannon 4 | . . . . 1 . 1 1 . 1 . Ballistic Gun 7 | 1 1 2 . . . 3 . . . . Ballistic Cannon 4 | . . . . . . . 3 1 . . Launcher . | . . . . . . . . . . . Special Weapon 1 | . 1 . . . . . . . . . Impact Weapon . | . . . . . . . . . . . Slashing Weapon 5 | . . . . . . 1 3 . . 1 Piercing Weapon . | . . . . . . . . . . . Special Melee Weapon . | . . . . . . . . . . . Unidentified Prototypes 3 | . . . . 2 . . 1 . . . Parts Lost 11 | . . . . . . 2 2 . 7 . Power 4 | . . . . . . . 2 . 2 . Propulsion 2 | . . . . . . . . . 2 . Utility 3 | . . . . . . 2 . . 1 . Weapon 2 | . . . . . . . . . 2 . Highest Loss Streak 5 | . . . . . . 1 1 . 5 . To Critical Strikes 1 | . . . . . . . . . 1 . Average Slot Usage (%) 93 | . 100 100 100 93 100 96 91 86 82 84 Engine 7 | . 14 11 11 11 11 9 6 . . . Core 3 | . . . . . . . 7 9 5 6 Treads 16 | . 15 15 22 22 22 18 15 15 7 6 Wheel 5 | . 12 6 . . . . 6 7 15 13 Flight 1 | . . . . . . 8 . . . . Device 16 | . 12 22 22 17 3 21 17 15 10 12 Storage 8 | . 14 11 11 11 11 9 7 7 7 6 Processor 7 | . . 1 . 4 11 9 7 7 7 10 Protection 6 | . 1 9 11 11 18 3 5 7 11 8 Energy Gun 4 | . 14 3 . . 11 8 . . 4 . Ballistic Gun 6 | . 13 18 22 16 11 8 . . . . Ballistic Cannon 3 | . . . . . . . 7 12 7 6 Slashing Weapon 2 | . . . . . . . 6 2 . 4 Peak Build Rating 56 | 9 10 17 17 23 20 31 42 46 48 56 Average Rating 29 | 5 8 13 17 17 18 25 36 43 42 54 On Entrance 22 | . 9 8 17 17 18 18 27 41 46 48 Naked Turns . | . . . . . . . . . . . Heaviest Build 118 | 12 19 23 23 23 28 28 106 111 118 117 Greatest Support 44 | 16 40 44 44 44 44 44 28 28 38 38 Greatest Overweight (x) 3 | 1 1 2 . . . . 3 3 3 3 Average Overweight (x) 1 | . . . . . . . 1 3 2 2 Largest Inventory Capacity 25 | 8 10 10 10 10 10 10 25 25 25 25 Average Capacity 13 | 7 9 10 10 10 10 10 11 25 25 25 Most Carried 24 | 6 10 10 10 10 10 10 21 24 24 21 Average Carried 12 | 3 9 9 10 9 9 9 10 23 19 19 Final Capacity 25 | 8 10 10 10 10 10 10 25 25 25 25 Final Carried 24 | 5 10 10 10 9 10 10 21 24 18 21 Class Distribution -------------------- 29% | Scavenger-Assassin 27% | Mutant 27% | Skirmisher 11% | Scavenger-Mutant 3% | Scavenger-Skirmisher Dominant Class ---------------- Mutant | -10/Materials Mutant | -9/Materials Mutant | -9/Mines Mutant | -9/Exiles Mutant | -8/Mines Skirmisher | -8/Materials Scavenger-Assassin | -7/Factory Scavenger-Mutant | -7/Lower Caves Scavenger-Mutant | -7/Lower Caves Scavenger-Assassin | -6/Factory Resources | -11 -10 -9 -9 -9 -8 -8 -7 -7 -7 -6 ----------- Run | Yrd Mat Mat Min Exi Min Mat Fac Low Low Fac Matter Collected 1466 | 194 118 143 . . 50 88 241 379 212 41 Remotely 188 | . . . . . . . 188 . . . Salvage Created 1050 | 19 118 93 . . 68 246 85 76 304 41 Parts 63 | 3 13 4 . . 10 7 6 7 11 2 Haulers Intercepted . | . . . . . . . . . . . Recyclers Shooed . | . . . . . . . . . . . Parts Field Recycled . | . . . . . . . . . . . Retrieved Matter . | . . . . . . . . . . . Parts Self-Destructed 16 | . . . . . . . . 6 10 . Prevented 1 | . . . . . . . . . 1 . Kills | -11 -10 -9 -9 -9 -8 -8 -7 -7 -7 -6 ------- Run | Yrd Mat Mat Min Exi Min Mat Fac Low Low Fac Combat Hostiles Destroyed 28 | . 2 2 . . 4 5 2 4 8 1 Melee 2 | . . . . . . . 1 1 . . Guns 13 | . 2 2 . . 4 4 . . 1 . Cannons 10 | . . . . . . . 1 3 5 1 AOE 2 | . . . . . . . . . 2 . Classes Destroyed 11 | 1 2 1 . . 1 2 3 . 1 . Worker 1 | . . 1 . . . . . . . . Tunneler 2 | 1 . . . . 1 . . . . . Operator 1 | . . . . . . . 1 . . . Watcher 2 | . 2 . . . . . . . . . Swarmer 7 | . . . . . 4 . . 3 . . Grunt 14 | . 2 2 . . . 3 . . 7 . Brawler 1 | . . . . . . . . . 1 . Duelist 1 | . . . . . . 1 . . . . Sentry 1 | . . . . . . 1 . . . . Hunter 1 | . . . . . . . 1 . . . Programmer 3 | . . . . . . . 1 1 . 1 Best Kill Streak 4 | 1 2 1 . . 4 1 1 3 4 1 Combat Bots Only 4 | . 2 1 . . 4 1 1 3 4 1 Max Kills in Single Turn 2 | 1 1 1 . . 1 1 1 1 2 1 Gunslinging . | . . . . . . . . . . . Exploded 2 | . . . . . . . . . 2 . Melee 1 | . . . . . . . 1 1 . . Uniques/NPCs Destroyed . | . . . . . . . . . . . Combat | -11 -10 -9 -9 -9 -8 -8 -7 -7 -7 -6 -------- Run | Yrd Mat Mat Min Exi Min Mat Fac Low Low Fac Hostile Shots Fired 203 | . 11 15 . . 25 39 12 33 64 4 Missed 50 | . 2 4 . . 2 6 7 9 19 1 Damage Taken 2470 | . 124 166 . . 189 538 276 357 776 44 Core 233 | . 36 14 . . 7 100 . 59 17 . Absorbed by Shields . | . . . . . . . . . . . Core Remaining (%) 89 | 100 85 . . . 94 81 . . 89 . Volleys Fired 117 | 3 18 14 . . 9 22 13 10 25 3 Largest 2 | 2 2 2 . . 2 2 2 2 2 1 Hottest 120 | 60 60 60 . . 85 120 120 88 120 120 Shots Fired 196 | 6 33 28 . . 10 39 15 20 42 3 Gun 122 | 6 31 28 . . 10 35 . . 12 . Cannon 72 | . . . . . . 4 15 20 30 3 Launcher . | . . . . . . . . . . . Special 2 | . 2 . . . . . . . . . Kinetic 113 | 3 16 20 . . 1 17 12 20 24 . Thermal 71 | 3 17 8 . . 9 22 3 . 6 3 Explosive . | . . . . . . . . . . . Electromagnetic 12 | . . . . . . . . . 12 . Robot Hit Streak 10 | 4 7 10 . . 2 9 3 4 8 3 Robot Miss Streak 6 | 1 4 3 . . 1 3 4 6 4 . Penetration Max . | . . . . . . . . . . . Secondary Targets . | . . . . . . . . . . . Shots Hit Robots 138 | 4 18 21 . . 5 30 9 13 35 3 Core Hits 74 | 1 9 6 . . 5 10 6 7 29 1 Critical Kills . | . . . . . . . . . . . Critical Parts Destroyed 1 | . . . . . . 1 . . . . Critical Strikes 3 | . . . . . . 3 . . . . Burn 2 | . . . . . . 2 . . . . Destroy 1 | . . . . . . 1 . . . . Melee Attacks 29 | . . . . . . 2 25 1 . 1 Impact . | . . . . . . . . . . . Slashing 29 | . . . . . . 2 25 1 . 1 Piercing . | . . . . . . . . . . . Sneak Attacks 1 | . . . . . . . . 1 . . Combat Hostiles 1 | . . . . . . . . 1 . . Follow-up Attacks . | . . . . . . . . . . . Damage Inflicted 2837 | 48 202 267 . . 92 538 340 267 947 136 Guns 1176 | 48 202 267 . . 92 396 . . 171 . Cannons 1337 | . . . . . . 142 191 205 663 136 Explosions 196 | . . . . . . . 83 . 113 . Melee 128 | . . . . . . . 66 62 . . Ramming . | . . . . . . . . . . . Kinetic 1250 | 26 102 200 . . 13 182 80 205 442 . Thermal 1205 | 22 100 67 . . 79 356 111 . 334 136 Explosive 83 | . . . . . . . 83 . . . Electromagnetic 171 | . . . . . . . . . 171 . Impact . | . . . . . . . . . . . Slashing 128 | . . . . . . . 66 62 . . Piercing . | . . . . . . . . . . . Highest Corruption 9 | . . . . . . . . . 9 1 Average Corruption 5 | . . . . . . . . . 5 1 Corruption Purged 5 | . . . . . . . . . 5 . Corruption Blocked . | . . . . . . . . . . . Effects 7 | . . . . . . . . . 7 . Message Errors 2 | . . . . . . . . . 2 . Matter Fused 1 | . . . . . . . . . 1 . Energy Discharges 1 | . . . . . . . . . 1 . Data Loss (minor) 2 | . . . . . . . . . 2 . Misfires 1 | . . . . . . . . . 1 . Overload Shots . | . . . . . . . . . . . Overflow Damage 14 | . . . . . . . 8 1 5 . Projectiles 9 | . . . . . . . 8 1 . . Explosions 5 | . . . . . . . . . 5 . Melee . | . . . . . . . . . . . Knockbacks 18 | . . . . . . . 4 4 10 . Impact . | . . . . . . . . . . . Kinetic 18 | . . . . . . . 4 4 10 . Secondary . | . . . . . . . . . . . Self-Inflicted Damage 44 | . . . . . . . . . 44 . Shots 1 | . . . . . . . . . 1 . Rammed . | . . . . . . . . . . . Targets Rammed . | . . . . . . . . . . . Kicked . | . . . . . . . . . . . Crushed . | . . . . . . . . . . . Highest Temperature 279 | . 159 90 . . 240 205 156 . 279 204 Average Temperature 82 | . 89 52 . . 105 64 83 . 80 116 Received Heat Transfer 894 | . 87 96 . . . 279 . . 432 . Effects 2 | . . . . . . . . . 2 . Interference 2 | . . . . . . . . . 2 . Siege Activations . | . . . . . . . . . . . Robots Corrupted . | . . . . . . . . . . . Combat Hostiles . | . . . . . . . . . . . Parts Fried . | . . . . . . . . . . . Impact Corruptions . | . . . . . . . . . . . Robots Melted 1 | . . . . . . 1 . . . . Combat Hostiles 1 | . . . . . . 1 . . . . Parts Melted 6 | . . . . . . 2 2 . . 2 Heat Transferred 2706 | 50 225 150 . . 185 986 240 . 630 240 Parts Sabotaged . | . . . . . . . . . . . Parts Stolen . | . . . . . . . . . . . Parts Stripped . | . . . . . . . . . . . Power Chain Reactions 1 | . . . . . . . . . 1 . Alert | -11 -10 -9 -9 -9 -8 -8 -7 -7 -7 -6 ------- Run | Yrd Mat Mat Min Exi Min Mat Fac Low Low Fac Peak Influence 162 | 5 145 162 63 . 95 145 83 . . 125 Initial 94 | . 3 61 63 . . . . . . 94 Average 47 | . 69 127 63 . 85 30 23 . . 95 Maximum Alert Level . | . . . . . . . . . . . Low Security (%) 100 | 100 100 100 100 . 100 100 100 . . 100 Level 1 . | . . . . . . . . . . . Level 2 . | . . . . . . . . . . . Level 3 . | . . . . . . . . . . . Level 4 . | . . . . . . . . . . . Level 5 . | . . . . . . . . . . . High Security . | . . . . . . . . . . . Max Security . | . . . . . . . . . . . Squads Dispatched 6 | . 1 . . . . . 5 . . . Investigation . | . . . . . . . . . . . Extermination 2 | . . . . . . . 2 . . . Reinforcement 4 | . 1 . . . . . 3 . . . Assault . | . . . . . . . . . . . Garrison . | . . . . . . . . . . . Intercept . | . . . . . . . . . . . Searches Triggered . | . . . . . . . . . . . Construction Impeded 1 | . . . . . . . 1 . . . Haulers Reinforced . | . . . . . . . . . . . Active Scanning Responses . | . . . . . . . . . . . Cargo Convoy Interrupts . | . . . . . . . . . . . Stealth | -11 -10 -9 -9 -9 -8 -8 -7 -7 -7 -6 --------- Run | Yrd Mat Mat Min Exi Min Mat Fac Low Low Fac Distress Signals 3 | . 1 2 . . . . . . . . Communications Jammed . | . . . . . . . . . . . Distress Signals . | . . . . . . . . . . . Times Spotted 46 | . 5 5 . . 4 13 6 4 8 1 Peak Tracking Total 5 | . 3 3 . . 4 5 2 4 4 1 Tactical Retreats 5 | . 1 1 . . . 3 . . . . Traps | -11 -10 -9 -9 -9 -8 -8 -7 -7 -7 -6 ------- Run | Yrd Mat Mat Min Exi Min Mat Fac Low Low Fac Traps Triggered 3 | . . . . . . . 3 . . . Indirectly . | . . . . . . . . . . . Trap Hack Attempts . | . . . . . . . . . . . Triggered . | . . . . . . . . . . . Disarmed . | . . . . . . . . . . . Reprogrammed . | . . . . . . . . . . . Reused . | . . . . . . . . . . . Traps Extracted . | . . . . . . . . . . . Installed . | . . . . . . . . . . . Triggered . | . . . . . . . . . . . Machines | -11 -10 -9 -9 -9 -8 -8 -7 -7 -7 -6 ---------- Run | Yrd Mat Mat Min Exi Min Mat Fac Low Low Fac Machines Disabled 3 | . . . . . . . 3 . . . Max in Single Turn 2 | . . . . . . . 2 . . . Machines Repaired . | . . . . . . . . . . . Machines Dismantled . | . . . . . . . . . . . Machines Sabotaged . | . . . . . . . . . . . Overloaded Fab Kills . | . . . . . . . . . . . Hacking | -11 -10 -9 -9 -9 -8 -8 -7 -7 -7 -6 --------- Run | Yrd Mat Mat Min Exi Min Mat Fac Low Low Fac Machines Accessed 17 | . 5 . . . . 2 10 . . . Terminals 15 | . 5 . . . . 2 8 . . . Fabricators . | . . . . . . . . . . . Repair Stations . | . . . . . . . . . . . Recycling Units 1 | . . . . . . . 1 . . . Scanalyzers 1 | . . . . . . . 1 . . . Garrison Access . | . . . . . . . . . . . Total Hacks 39 | . 17 . . . . 3 19 . . . Successful 17 | . 7 . . . . . 10 . . . Failed 22 | . 10 . . . . 3 9 . . . Catastrophic 7 | . 1 . . . . 2 4 . . . Database Lockouts . | . . . . . . . . . . . Manual 17 | . 11 . . 1 . 1 4 . . . Terminals 34 | . 17 . . . . 3 14 . . . Fabricators . | . . . . . . . . . . . Repair Stations . | . . . . . . . . . . . Recycling Units 3 | . . . . . . . 3 . . . Scanalyzers 2 | . . . . . . . 2 . . . Garrison Access . | . . . . . . . . . . . Terminal Hacks 9 | . 5 . . . . . 4 . . . Record 1 | . . . . . . . 1 . . . Open DSF 2 | . . . . . . . 2 . . . Level Access Points 2 | . 1 . . . . . 1 . . . Terminal Index 1 | . 1 . . . . . . . . . Locate Traps 1 | . 1 . . . . . . . . . Hauler Manifests 1 | . 1 . . . . . . . . . Zone Layout 1 | . 1 . . . . . . . . . Fabricator Hacks . | . . . . . . . . . . . Repair Station Hacks . | . . . . . . . . . . . Recycling Unit Hacks 3 | . . . . . . . 3 . . . Process 1 | . . . . . . . 1 . . . Report Inventory 1 | . . . . . . . 1 . . . Retrieve Matter 1 | . . . . . . . 1 . . . Scanalyzer 1 | . . . . . . . 1 . . . Insert Component 1 | . . . . . . . 1 . . . Garrison Access Hacks . | . . . . . . . . . . . Unauthorized Hacks 4 | . 2 . . . . . 2 . . . Terminals 4 | . 2 . . . . . 2 . . . Botnet 4 | . 2 . . . . . 2 . . . Fabricators . | . . . . . . . . . . . Repair Stations . | . . . . . . . . . . . Recycling Units . | . . . . . . . . . . . Scanalyzers . | . . . . . . . . . . . Garrison Access . | . . . . . . . . . . . Data Cores Recovered . | . . . . . . . . . . . Used . | . . . . . . . . . . . Hacking Detections 14 | . 4 . . . . 2 8 . . . Full Trace Events . | . . . . . . . . . . . Feedback Events . | . . . . . . . . . . . Feedback Blocked . | . . . . . . . . . . . Robot Schematics Acquired . | . . . . . . . . . . . Robots Built . | . . . . . . . . . . . Authchips . | . . . . . . . . . . . Time . | . . . . . . . . . . . Total Robot Build Rating . | . . . . . . . . . . . Part Schematics Acquired . | . . . . . . . . . . . Parts Built . | . . . . . . . . . . . Authchips . | . . . . . . . . . . . Time . | . . . . . . . . . . . Total Part Build Rating . | . . . . . . . . . . . Parts Repaired . | . . . . . . . . . . . Time . | . . . . . . . . . . . Parts Recycled . | . . . . . . . . . . . Recycled Matter 13 | . . . . . . . 13 . . . Retrieved Matter 13 | . . . . . . . 13 . . . Retrieved Components . | . . . . . . . . . . . Parts Scanalyzed 1 | . . . . . . . 1 . . . Part Schematics Acquired . | . . . . . . . . . . . Parts Damaged . | . . . . . . . . . . . Bothacking | -11 -10 -9 -9 -9 -8 -8 -7 -7 -7 -6 ------------ Run | Yrd Mat Mat Min Exi Min Mat Fac Low Low Fac Used RIF Installer . | . . . . . . . . . . . Robots Hacked . | . . . . . . . . . . . Non-combat . | . . . . . . . . . . . Combat . | . . . . . . . . . . . Robot Hacks Applied . | . . . . . . . . . . . Relay Couplers Released . | . . . . . . . . . . . Fabnet Peak Effective % . | . . . . . . . . . . . Robots Rewired . | . . . . . . . . . . . Allies Hacked 3 | . . . . . . . 3 . . . Hacks Repelled . | . . . . . . . . . . . Allies | -11 -10 -9 -9 -9 -8 -8 -7 -7 -7 -6 -------- Run | Yrd Mat Mat Min Exi Min Mat Fac Low Low Fac Total Allies 4 | . . . 1 . . . 3 . . . Largest Group 3 | . . . 1 1 . . 3 . . . Highest-Rated Group 93 | . . . 31 31 . . 93 . . . Highest-Rated Ally 31 | . . . 31 31 . . 31 . . . Total Orders . | . . . . . . . . . . . Ally Attacks 18 | . . . . . . . 18 . . . Total Damage 312 | . . . . . . . 312 . . . Kills 1 | . . . . . . . 1 . . . Allies Corrupted 1 | . . . . . . . 1 . . . Allies Melted . | . . . . . . . . . . . Intel | -11 -10 -9 -9 -9 -8 -8 -7 -7 -7 -6 ------- Run | Yrd Mat Mat Min Exi Min Mat Fac Low Low Fac Robot Analysis Total . | . . . . . . . . . . . Derelict Logs Recovered 1 | . . . . . . . . 1 . . Drone Launches . | . . . . . . . . . . . Drone Recoveries . | . . . . . . . . . . . Exploration | -11 -10 -9 -9 -9 -8 -8 -7 -7 -7 -6 ------------- Run | Yrd Mat Mat Min Exi Min Mat Fac Low Low Fac Turns Passed 5377 | 90 382 216 92 355 427 1230 1507 521 213 344 Spaces Moved 2684 | 70 273 111 62 235 263 321 820 320 106 103 Core 3 | 3 . . . . . . . . . . Treads 1019 | . 1 46 62 235 263 321 91 . . . Legs . | . . . . . . . . . . . Wheels 1662 | 67 272 65 . . . . 729 320 106 103 Hover . | . . . . . . . . . . . Flight . | . . . . . . . . . . . Fastest Speed 50 | 50 95 95 145 145 145 145 100 145 120 120 Average Speed 131 | 90 95 125 145 145 145 145 128 145 122 131 Slowest Speed 225 | 100 160 160 145 145 145 145 225 145 135 135 Overloaded Moves . | . . . . . . . . . . . Propulsion Burnouts . | . . . . . . . . . . . Robots Hopped . | . . . . . . . . . . . Cave-ins Triggered . | . . . . . . . . . . . Exploration Rate (%) 31 | 5 52 18 18 62 63 27 27 55 12 3 Regions Visited 10 Branch Regions 5 Pre-discovered Areas . | . . . . . . . . . . . Known Exits Taken 2 | . 1 . . . . . . . 1 . Unknown Exits Taken 8 | 1 . 1 1 1 1 1 1 1 . . Scrap Searched 4 | . . . . . . . . 3 1 . Spaces Dug 19 | . . . . . . 2 16 . . 1 Terrain Destroyed 44 | . . . . . . 2 38 1 2 1 Melee 19 | . . . . . . 2 16 . . 1 Projectile 2 | . . . . . . . 1 1 . . AOE 23 | . . . . . . . 21 . 2 . Terrain Rammed . | . . . . . . . . . . . Walls Destroyed . | . . . . . . . . . . . Machines Disabled . | . . . . . . . . . . . Actions | -11 -10 -9 -9 -9 -8 -8 -7 -7 -7 -6 --------- Run | Yrd Mat Mat Min Exi Min Mat Fac Low Low Fac Total 4296 | 87 361 161 64 251 297 1043 1223 355 147 307 Wait 1288 | . 46 20 3 . 17 674 317 19 4 188 Move 2674 | 69 272 110 61 234 262 320 819 319 105 103 Hop . | . . . . . . . . . . . Pick Up 60 | 7 10 4 . 2 3 6 17 4 1 6 Fast Attach 15 | 5 . . . 2 . 2 5 . 1 . Attach 29 | 2 1 3 . 3 1 4 4 1 7 3 Detach 5 | . 1 . . 2 . 1 1 . . . Swap 42 | 1 7 5 . 2 4 7 10 1 3 2 Drop 37 | . 6 5 . 6 1 5 12 . 1 1 Fire 117 | 3 18 14 . . 9 22 13 10 25 3 Melee 29 | . . . . . . 2 25 1 . 1 Ram . | . . . . . . . . . . . Kick . | . . . . . . . . . . . Crush . | . . . . . . . . . . . Escape Stasis . | . . . . . . . . . . . Rewire . | . . . . . . . . . . . Trap . | . . . . . . . . . . . Miscellaneous . | . . . . . . . . . . . Route ------- -11/Scrapyard -10/Materials (discovered 3 exits: *Mat x3) -9/Materials (discovered 2 exits: [*Min x2]) -9/Mines -9/Exiles -8/Mines -8/Materials (discovered 2 exits: *Fac / [Sto]) -7/Factory (discovered 5 exits: Fac x4 / [*Low]) -7/Lower Caves -7/Lower Caves -6/Factory History --------- Turn | Location | Event 23 | -11/Scrapyard | Discovered new exit (range 16) 91 | -11/Scrapyard | Entered Materials 133 | -10/Materials | Identified exit to Materials 316 | -10/Materials | Build established: Mutant 473 | -10/Materials | Entered another Materials area 473 | -9/Materials | Evolved 2 slots: Utility x2 630 | -9/Materials | Met 8R-AWN 635 | -9/Materials | Discovered new exit (range 14) 654 | -9/Materials | Discovered new exit (range 16) 689 | -9/Materials | Entered Mines 691 | -9/Mines | Followed 8R-AWN into the Mines 692 | -9/Mines | Received a Mining Laser from a helpful Derelict 775 | -9/Mines | Discovered new exit (range 5) 781 | -9/Mines | Entered Exiles 781 | -9/Exiles | Accompanied by 1 ally 816 | -9/Exiles | Welcomed by 8R-AWN 841 | -9/Exiles | Met EX-HEX 896 | -9/Exiles | Met EX-BIN 918 | -9/Exiles | Aligned with FarCom system 919 | -9/Exiles | Given EX-Vault access code 954 | -9/Exiles | Opened EX-Vault 965 | -9/Exiles | Found Prototype Energy Cannon 966 | -9/Exiles | Identified Gui. Plasma Cannon 977 | -9/Exiles | Found Prototype Device 977 | -9/Exiles | Identified Supersonic Drone Bay 1024 | -9/Exiles | Warned to stay clear of 0b10 Research branches 1069 | -9/Exiles | Met EX-DEC 1118 | -9/Exiles | Discovered new exit (range 14) 1136 | -9/Exiles | Left Exiles lab with Gui. Plasma Cannon 1136 | -9/Exiles | Entered Mines 1553 | -8/Mines | Discovered new exit (range 8) 1563 | -8/Mines | Entered Materials 1563 | -8/Materials | Evolved 2 slots: Propulsion x1, Utility x1 1739 | -8/Materials | Build established: Skirmisher 2347 | -8/Materials | Discovered new exit (range 14) 2701 | -8/Materials | Discovered new exit (range 7) 2793 | -8/Materials | Entered Factory 2793 | -7/Factory | Evolved 2 slots: Power x1, Propulsion x1 3438 | -7/Factory | Build established: Scavenger-Assassin 3764 | -7/Factory | Allied Derelicts emerged from ambush trap array 3829 | -7/Factory | Lost 3 allies 3897 | -7/Factory | Identified exit to Factory 4217 | -7/Factory | Discovered new exit (range 16) 4300 | -7/Factory | Entered Lower Caves 4602 | -7/Lower Caves | Build established: Scavenger-Mutant 4807 | -7/Lower Caves | Discovered new exit (range 10) 4821 | -7/Lower Caves | Entered another Lower Caves area 4880 | -7/Lower Caves | Lost 5 parts (1p2n1u1w) 5023 | -7/Lower Caves | Discovered exit to Factory (range 8) 5034 | -7/Lower Caves | Entered Factory 5034 | -6/Factory | Evolved 2 slots: Utility x1, Weapon x1 5378 | -6/Factory | Self-destructed Last Messages --------------- 05013_ Discarded Terrain Scan Processor. 05015_ Acquired Mak. Terrain Scan Processor. 05023_ EXIT=FOUND: FACTORY PARAMETERS=UTILITY+1,WEAPON+1 LOCATION=FACTORY GOAL=ESCAPE 05034_ Receiving FarCom transmissions... 05034_ Dropped Imp. Medium Armor Plating. 05037_ Acquired Imp. Medium Armor Plating. 05047_ Acquired Power Amplifier. 05055_ Acquired Proton Cannon. 05079_ Acquired Adv. Melee Analysis Suite. 05139_ Acquired Enh. Optical Array. 05365_ ALERT: All DSF locations entering lockdown mode. 05370_ Target Analyzer melted. 05370_ Imp. Heat Sink melted. 05370_ P-60 Hacker destroyed. 05372_ Acquired 41 matter. 05375_ Acquired Gravmag System. Map ----- +----------------------------------------------------+ | ?????????????????????????????????????????????????? | | ?????????????????????????????????????????????????? | | ?????????????????????? ??????????????????????????? | | ?????????????????????????"???????????????????????? | | ???????????????????? ?? ?????????????????????????? | | ??????????????#??#???????##???#??????????????????? | | ?????????????????????#??#??????#?????????????????? | | ???????????? ????? ????????????#??#????????????#?# | | ???????????? ?????? ?????##???#?#????????????????? | | ??????????????"???" ??#?#??#?#?###???????????????? | | ????????????????""? ############???#????#?????#??? | | ??????????? ?????""?#############??#??#?#?????###? | | ???????? ?#???"?""" #################?????#??#??#? | | ?????????????? ########?########??##?#??##?## | | ??????????#??########################?#??#??#####? | | ????????????############?#############????###???## | | ??????????#???#####?###################?#?#####?#? | | ???????????########?# # ####??##?### | | ???????#?#?########## # # ? #? | | ??????????########### # # """""" ## | | ??????????########### # # """""" ## | | ?????????############ # # """""" #? | | ?????????###?######## # # """""" ## | | ?????????############ # # ## | | ?????????############ | # # ## | | ???????? ########?### @ ; # ## | | ??????????#################+######+######+######## | | ??????????############## | | ?????????############### | | ?????????############### ^ | | ?????????###?########### | | ???????????#######?##### | | ??????????#?########?### #####+############### | | ???????????############# ##### ? ? #??##### | | ???????????############# ##### ? ###??### | | ????????????###?######## ##### ? #?##??## | | ?????????????#########?# ##### ?? ?####### | | ?????????????? # ##### ?? ?????#????? | | ???????????????? ? T # ####? ???? ##??#?## | | ?????????????????"?" # ###??? ? ?????#??### | | ???????????????????" # ##?#? ??????#?#?#### | | ???????????????????????# #?#????? ? ??##??#?#? | | ???????????????????????+ #??#?????????#??? ? | | ??????????????????"????# #????????????#?? ???? | | ???????????????????????# #???????????????????? | | ???????????????????????# #???????????????????? | | ???????????????????????# #???????????????? ??? | | ???????????????????????# T???????????????????? | | ???????????????????????? ???????????????????? | | ???????????????????????? #???????????????????? | +----------------------------------------------------+ Best States ------------- Heat Dissipation 48 Energy Generation 24 Energy Capacity 240 Matter Stores 300 Matter Capacity 300 Sight Range 22 Robot Scan Range 14 Terrain Scan Range 16 Terrain Scan Density 135 Armor Coverage 450 Evasion (%) 44 Recoil Reduction 2 Item Schematics ----------------- None Robot Schematics ------------------ None Fabricated ------------ Nothing Alien Tech Used ----------------- None Achievements -------------- Use The Force Challenges ------------ None Game ------ Seed CoreGuidanceCannon Manual? 0 Play Time 00:50:57 Cumulative 39.5 hours Start 2024.12.23 @ 14:38:36 End 2024.12.24 @ 14:13:10 Sessions 5 Manual Loads 0 Difficulty Rogue Special Mode None Game No. 39 Rogue 39 Adventurer 0 Explorer 0 Win Type - Total 0 Types 0/0/0/0/0/0/0/0/0 Lore% 24 Gallery% 32 Achievement% 30 Wizard Run 0 Options --------- Layout 1 ASCII 0 Keyboard 0 Movement Arrows Keybinds 0 Fullscreen 2 Font 24/Terminus Map View 50x35 Zoom Use 0% Tactical HUD 1 Map Filters NONE Filters NONE Steam 1 RUN: 8afc6937-ea1e-40e9-b668-2aedcc3be8bf